fUST/lending_fUST_20260701
["ID","MTS","AMOUNT","RATE_DAILY","PERIOD"]
[426805684,1782844232000,-662.0,0.00029,2]
[426805685,1782844232000,-385.43,0.00029036,15]
[426805677,1782844232000,-186.0,0.00028177,2]
[426805779,1782844238000,-342.15394123,0.000294,2]
[426805781,1782844238000,-1415.79520039,0.000294,2]
[426805787,1782844238000,-6402.20609752,0.000294,2]
[426805870,1782844247000,-389.86098548,0.00029499,2]
[426805868,1782844247000,-500.0,0.00029499,2]
[426805866,1782844247000,-500.0,0.00029499,2]
[426805865,1782844247000,-500.0,0.00029499,7]
[426805869,1782844247000,-500.0,0.00029499,2]
[426805867,1782844247000,-500.0,0.00029499,2]
[426805863,1782844247000,-504.41357142,0.00029499,7]
[426805864,1782844247000,-500.0,0.00029499,7]
[426805862,1782844247000,-500.0,0.00029499,7]
[426805859,1782844247000,-385.43,0.00029436,15]
[426805858,1782844247000,-188.85544309,0.000294,2]
[426805861,1782844247000,-500.0,0.00029498,7]
[426805860,1782844247000,-385.43,0.00029486,15]
[426805877,1782844332000,860.4,0.00030137,30]
[426805932,1782845431000,-235.0,0.00028,2]
[426805924,1782845431000,-192.24036016,0.00028,2]
[426805922,1782845431000,-218.26,0.00027887,15]
[426805934,1782845431000,-173.07861104,0.00028,2]
[426805937,1782845431000,-1386.66144279,0.00028177,2]
[426805936,1782845431000,-2213.0,0.00028177,2]
[426805939,1782845431000,-34.33855721,0.00028177,2]
[426805944,1782845431000,-369.22657625,0.00028177,2]
[426805929,1782845431000,-106.75963984,0.00028,2]
[426805931,1782845431000,-197.0,0.00028,2]
[426805941,1782845431000,-666.15893118,0.00028177,2]
[426805970,1782845440000,-299.0,0.00029,2]
[426805967,1782845440000,-500.0,0.00028999,2]
[426805965,1782845440000,-186.0,0.00028177,2]
[426805971,1782845440000,-197.0,0.00029,2]
[426805973,1782845440000,-1206.44584234,0.00029,2]
[426805968,1782845440000,-500.0,0.00028999,7]
[426805972,1782845440000,-235.0,0.00029,2]
[426805969,1782845440000,-500.0,0.00028999,7]
[426805966,1782845440000,-151.546,0.00028177,2]
[426805963,1782845440000,-809.61449257,0.00028177,2]
[426805962,1782845440000,-422.05972355,0.00027555,14]
[426805964,1782845440000,-446.0,0.00028177,2]
[426805994,1782845443000,-3307.4124041,0.00029,2]
[426806015,1782845446000,-320.82356479,0.00029341,2]
[426806012,1782845446000,-2515.51906486,0.00029,2]
[426806011,1782845446000,-23883.93331337,0.00029,2]
[426806013,1782845446000,-153.93,0.00029211,7]
[426806014,1782845446000,-200.81744953,0.00029341,2]
[426806016,1782845446000,-501.28681998,0.00029341,2]
[426806026,1782845446000,-837.79691481,0.000295,2]
[426806025,1782845446000,-1319.26282965,0.000295,2]
[426806022,1782845446000,-500.0,0.00029498,2]
[426806018,1782845446000,-216.73342679,0.00029455,2]
[426806023,1782845446000,-642.05936999,0.00029499,2]
[426806020,1782845446000,-565.62,0.0002949,3]
[426806024,1782845446000,-12300.62512878,0.000295,2]
[426806019,1782845446000,-188.54,0.0002949,3]
[426806021,1782845446000,-721.13116775,0.00029491,2]
[426806017,1782845446000,-377.86159614,0.000294,2]
[426806098,1782846129000,-2219.59814189,0.00021,2]
[426806100,1782846146000,-311.23990932,0.00021,2]
[426806108,1782846449000,2175.98589377,0.000292,120]
[426806167,1782846631000,-186.0,0.00027327,2]
[426806163,1782846631000,-161.89,0.00026605,2]
[426806165,1782846631000,-361.10993774,0.00026623,2]
[426806161,1782846631000,-1170.56566494,0.00025,2]
[426806169,1782846631000,-442.0,0.00027327,2]
[426806187,1782846632000,-269.185,0.00028177,2]
[426806194,1782846632000,-291.0,0.00029,2]
[426806195,1782846632000,-187.0,0.00029,2]
[426806197,1782846632000,-154.0,0.00029,2]
[426806199,1782846632000,-8855.09508774,0.00029142,2]
[426806196,1782846632000,-223.0,0.00029,2]
[426806188,1782846632000,-1421.0,0.00028177,2]
[426806200,1782846632000,-307.73805441,0.00029201,3]
[426806206,1782846632000,-722.22751535,0.00029206,2]
[426806205,1782846632000,-722.22751535,0.00029206,2]
[426806204,1782846632000,-722.22751535,0.00029206,2]
[426806198,1782846632000,-1511.8604558,0.00029069,2]
[426806186,1782846632000,-250.0,0.00028177,2]
[426806192,1782846632000,-255.3260695,0.000282,2]
[426806191,1782846632000,-280.77148002,0.00028177,2]
[426806190,1782846632000,-1166.7211725,0.00028177,2]
[426806189,1782846632000,-397.50734748,0.00028177,2]
[426806182,1782846632000,-232.959,0.00028177,2]
[426806184,1782846632000,-150.93,0.00028177,2]
[426806180,1782846632000,-352.77683702,0.00028024,2]
[426806178,1782846632000,-210.0,0.00028022,2]
[426806176,1782846632000,-152.0,0.00028,2]
[426806171,1782846632000,-291.0,0.00028,2]
[426806173,1782846632000,-187.0,0.00028,2]
[426806175,1782846632000,-223.0,0.00028,2]
[426806201,1782846632000,-363.69361527,0.00029201,3]
[426806193,1782846632000,-210.0,0.00029,2]
[426806203,1782846632000,-612.35314767,0.00029206,2]
[426806207,1782846632000,-722.22751535,0.00029206,2]
[426806234,1782846632000,-368.71669355,0.00029211,2]
[426806235,1782846632000,-300.0,0.00029211,2]
[426806233,1782846632000,-500.0,0.00029209,2]
[426806231,1782846632000,-780.00571657,0.00029206,2]
[426806232,1782846632000,-780.00571657,0.00029206,2]
[426806230,1782846632000,-508.53888625,0.00029206,2]
[426806229,1782846632000,-271.46683032,0.00029206,2]
[426806225,1782846632000,-780.00571657,0.00029206,2]
[426806227,1782846632000,-633.63880148,0.00029206,2]
[426806226,1782846632000,-30.98210052,0.00029206,2]
[426806228,1782846632000,-115.38481457,0.00029206,2]
[426806223,1782846632000,-780.00571657,0.00029206,2]
[426806222,1782846632000,-780.00571657,0.00029206,2]
[426806220,1782846632000,-722.22751535,0.00029206,2]
[426806224,1782846632000,-780.00571657,0.00029206,2]
[426806213,1782846632000,-722.22751535,0.00029206,2]
[426806210,1782846632000,-722.22751535,0.00029206,2]
[426806208,1782846632000,-722.22751535,0.00029206,2]
[426806211,1782846632000,-722.22751535,0.00029206,2]
[426806221,1782846632000,-780.00571657,0.00029206,2]
[426806214,1782846632000,-722.22751535,0.00029206,2]
[426806215,1782846632000,-722.22751535,0.00029206,2]
[426806219,1782846632000,-722.22751535,0.00029206,2]
[426806209,1782846632000,-722.22751535,0.00029206,2]
[426806217,1782846632000,-722.22751535,0.00029206,2]
[426806218,1782846632000,-722.22751535,0.00029206,2]
[426806212,1782846632000,-722.22751535,0.00029206,2]
[426806216,1782846632000,-722.22751535,0.00029206,2]
[426806202,1782846632000,-56.04833032,0.00029201,3]
[426806264,1782846638000,-500.0,0.00029242,2]
[426806261,1782846638000,-8557.0418244,0.00029211,2]
[426806260,1782846638000,-21460.88483015,0.00029211,2]
[426806262,1782846638000,-139838.29495916,0.00029211,2]
[426806263,1782846638000,-500.0,0.00029242,2]
[426806265,1782846638000,-316.01714546,0.00029242,2]
[426806266,1782846638000,-352.67082312,0.00029382,2]
[426806268,1782846638000,-180.21401961,0.00029499,2]
[426806271,1782846638000,-503529.70288588,0.000295,2]
[426806269,1782846638000,-282.84203507,0.00029499,2]
[426806270,1782846638000,-381.1,0.00029499,2]
[426806272,1782846638000,-15609.41784938,0.000295,2]
[426806274,1782846638000,-2520.08502448,0.000295,2]
[426806267,1782846638000,-168.03646628,0.00029482,2]
[426806312,1782846646000,-1593.6,0.000295,2]
[426806311,1782846646000,-2055.18161224,0.000295,2]
[426806439,1782847838000,-153.93,0.00029211,7]
[426806449,1782847838000,-529.24832325,0.00029411,2]
[426806448,1782847838000,-529.24832325,0.00029411,2]
[426806437,1782847838000,-169.0,0.00029,2]
[426806447,1782847838000,-529.24832325,0.00029411,2]
[426806441,1782847838000,-529.24832325,0.00029411,2]
[426806443,1782847838000,-529.24832325,0.00029411,2]
[426806445,1782847838000,-529.24832325,0.00029411,2]
[426806438,1782847838000,-201.0,0.00029,2]
[426806440,1782847838000,-7748.20820172,0.00029311,2]
[426806432,1782847838000,-282.84203507,0.00027938,2]
[426806444,1782847838000,-529.24832325,0.00029411,2]
[426806434,1782847838000,-201.0,0.00028,2]
[426806433,1782847838000,-169.0,0.00028,2]
[426806435,1782847838000,-186.0,0.00028177,2]
[426806431,1782847838000,-322.92479204,0.00027938,2]
[426806429,1782847838000,-343.72561775,0.00026541,2]
[426806430,1782847838000,-1920.8696,0.000279,3]
[426806426,1782847838000,-5000.0,0.00022002,2]
[426806428,1782847838000,-1705.285,0.000261,5]
[426806425,1782847838000,-3825.08782647,0.00021782,2]
[426806427,1782847838000,-4435.22639953,0.00022224,2]
[426806436,1782847838000,-2515.51906486,0.00029,2]
[426806446,1782847838000,-529.24832325,0.00029411,2]
[426806442,1782847838000,-428.64720337,0.00029411,2]
[426806451,1782847838000,-529.24832325,0.00029411,2]
[426806456,1782847838000,-529.24832325,0.00029411,2]
[426806475,1782847838000,-631.20063084,0.000295,2]
[426806473,1782847838000,-881.84760008,0.000295,2]
[426806469,1782847838000,-754.16,0.0002949,3]
[426806466,1782847838000,-546.88993401,0.00029411,2]
[426806470,1782847838000,-500.0,0.00029497,2]
[426806468,1782847838000,-354.35020796,0.00029413,2]
[426806463,1782847838000,-546.88993401,0.00029411,2]
[426806472,1782847838000,-24988.4334041,0.000295,2]
[426806464,1782847838000,-546.88993401,0.00029411,2]
[426806467,1782847838000,-546.88993401,0.00029411,2]
[426806471,1782847838000,-642.05936999,0.00029499,2]
[426806465,1782847838000,-546.88993401,0.00029411,2]
[426806460,1782847838000,-546.88993401,0.00029411,2]
[426806461,1782847838000,-546.88993401,0.00029411,2]
[426806454,1782847838000,-529.24832325,0.00029411,2]
[426806457,1782847838000,-529.24832325,0.00029411,2]
[426806474,1782847838000,-4967.01968253,0.000295,2]
[426806453,1782847838000,-529.24832325,0.00029411,2]
[426806459,1782847838000,-546.88993401,0.00029411,2]
[426806452,1782847838000,-529.24832325,0.00029411,2]
[426806450,1782847838000,-529.24832325,0.00029411,2]
[426806458,1782847838000,-529.24832325,0.00029411,2]
[426806455,1782847838000,-529.24832325,0.00029411,2]
[426806462,1782847838000,-546.88993401,0.00029411,2]
[426806511,1782847846000,-58667.0,0.000295,2]
[426806563,1782849032000,-324.06085006,0.00027941,2]
[426806562,1782849032000,-237.02359212,0.00026544,2]
[426806564,1782849032000,-152.0,0.00028,2]
[426806566,1782849032000,-287.27543678,0.00028,7]
[426806625,1782849038000,-181.0,0.00029,2]
[426806613,1782849038000,-2292.62163703,0.00028,7]
[426806615,1782849038000,-181.0,0.00028,2]
[426806614,1782849038000,-650.61090374,0.00028,7]
[426806622,1782849038000,-2579.89707381,0.0002856,7]
[426806616,1782849038000,-262.0,0.00028,2]
[426806617,1782849038000,-300.0,0.00028139,2]
[426806618,1782849038000,-1845.0,0.00028141,2]
[426806621,1782849038000,-6169.4025326,0.00028148,2]
[426806619,1782849038000,-1421.0,0.00028141,2]
[426806620,1782849038000,-186.0,0.00028141,2]
[426806624,1782849038000,-152.0,0.00029,2]
[426806623,1782849038000,-650.61090374,0.0002856,7]
[426806627,1782849038000,-1208.64233759,0.000291,2]
[426806632,1782849038000,-500.0,0.00029399,7]
[426806636,1782849038000,-500.0,0.00029411,2]
[426806640,1782849038000,-17555.91161486,0.000295,2]
[426806639,1782849038000,-210.38803318,0.00029439,2]
[426806635,1782849038000,-330.72686066,0.000294,2]
[426806637,1782849038000,-320.91153886,0.00029412,2]
[426806638,1782849038000,-366.75604442,0.00029412,2]
[426806633,1782849038000,-2579.89707381,0.000294,7]
[426806634,1782849038000,-650.61090374,0.000294,7]
[426806626,1782849038000,-262.0,0.00029,2]
[426806641,1782849038000,-1719.51901486,0.000295,2]
[426806629,1782849038000,-7179.84924419,0.000293,2]
[426806631,1782849038000,-500.0,0.00029399,7]
[426806630,1782849038000,-151.0,0.00029333,2]
[426806628,1782849038000,-153.93,0.00029214,7]
[426806667,1782849043000,-1433.41921733,0.000295,2]
[426806687,1782849047000,-12577.90811611,0.000295,2]
[426806686,1782849047000,-974.50032978,0.000295,2]
[426806694,1782849202000,160.0,0.00029214,30]
[426806695,1782849219000,2791.0,0.0003,30]
[426806696,1782849220000,417.15472785,0.00029214,30]
[426806697,1782849238000,160.0,0.00029214,30]
[426806703,1782849444000,152.0,0.00029214,30]
[426806705,1782849460000,529.63935106,0.0003,30]
[426806706,1782849462000,5952.5788429,0.0002876,30]
[426806707,1782849474000,-153.93,0.00021,2]
[426806708,1782849485000,-153.93,0.00021,2]
[426806711,1782849819000,-3.37990932,0.00021,2]
[426806712,1782849872000,-500.0,0.00021,2]
[426806713,1782849885000,-500.0,0.00021,2]
[426806714,1782849938000,-500.0,0.00021,2]
[426806717,1782849991000,-500.0,0.00021,2]
[426806718,1782850045000,-500.0,0.00021,2]
[426806721,1782850098000,-642.05936999,0.00021,2]
[426806772,1782850232000,-163.0,0.00028,2]
[426806766,1782850232000,-246.48774444,0.0002739,7]
[426806771,1782850232000,-152.0,0.00028,2]
[426806767,1782850232000,-186.0,0.0002772,2]
[426806773,1782850232000,-42.3185645,0.00028,7]
[426806769,1782850232000,-572.48326308,0.00027942,2]
[426806790,1782850238000,-284.48045155,0.00028,7]
[426806789,1782850238000,-2864.52677058,0.00028,7]
[426806794,1782850238000,-150.0,0.00028141,2]
[426806793,1782850238000,-150.0,0.00028141,2]
[426806791,1782850238000,-236.0,0.00028,2]
[426806795,1782850238000,-1841.0,0.00028141,2]
[426806797,1782850238000,-432.93978068,0.00028141,2]
[426806792,1782850238000,-150.0,0.00028141,2]
[426806800,1782850238000,-2803.04255441,0.0002856,7]
[426806798,1782850238000,-339.19721932,0.00028141,2]
[426806799,1782850238000,-103.80278067,0.0002856,7]
[426806801,1782850238000,-284.48045155,0.0002856,7]
[426806804,1782850238000,-152.0,0.00029,2]
[426806803,1782850238000,-160.0,0.00028989,2]
[426806802,1782850238000,-175.70681531,0.000288,7]
[426806805,1782850238000,-163.0,0.00029,2]
[426806841,1782850239000,-609.94,0.00029398,7]
[426806844,1782850239000,-308.67840332,0.000294,2]
[426806840,1782850239000,-500.0,0.00029389,2]
[426806850,1782850239000,-609.94,0.00029499,7]
[426806835,1782850239000,-400.0,0.00029115,2]
[426806837,1782850239000,-502.16273012,0.00029218,2]
[426806836,1782850239000,-500.0,0.00029115,2]
[426806833,1782850239000,-500.0,0.00029115,2]
[426806830,1782850239000,-500.0,0.00029115,2]
[426806845,1782850239000,-500.0,0.00029495,7]
[426806842,1782850239000,-2906.84533508,0.000294,7]
[426806849,1782850239000,-609.94,0.00029499,7]
[426806855,1782850239000,-609.94,0.00029499,7]
[426806851,1782850239000,-609.94,0.00029499,7]
[426806848,1782850239000,-253.23,0.00029499,7]
[426806847,1782850239000,-512.4,0.00029495,7]
[426806843,1782850239000,-284.48045155,0.000294,7]
[426806853,1782850239000,-609.94,0.00029499,7]
[426806854,1782850239000,-609.94,0.00029499,7]
[426806852,1782850239000,-609.94,0.00029499,7]
[426806832,1782850239000,-500.0,0.00029115,2]
[426806856,1782850239000,-609.94,0.00029499,7]
[426806868,1782850239000,-512.4,0.00029499,7]
[426806858,1782850239000,-609.94,0.00029499,7]
[426806857,1782850239000,-609.94,0.00029499,7]
[426806846,1782850239000,-642.05936999,0.00029495,2]
[426806834,1782850239000,-500.0,0.00029115,2]
[426806823,1782850239000,-500.0,0.00029115,2]
[426806831,1782850239000,-632.08746286,0.00029115,2]
[426806814,1782850239000,-500.0,0.00029115,2]
[426806812,1782850239000,-500.0,0.00029115,2]
[426806811,1782850239000,-363.97159998,0.00029115,2]
[426806815,1782850239000,-500.0,0.00029115,2]
[426806807,1782850239000,-500.0,0.00029099,7]
[426806808,1782850239000,-500.0,0.00029099,2]
[426806810,1782850239000,-15230.89481573,0.000291,7]
[426806809,1782850239000,-512.4,0.00029099,7]
[426806806,1782850239000,-236.0,0.00029,2]
[426806813,1782850239000,-500.0,0.00029115,2]
[426806816,1782850239000,-500.0,0.00029115,2]
[426806818,1782850239000,-500.0,0.00029115,2]
[426806820,1782850239000,-500.0,0.00029115,2]
[426806822,1782850239000,-500.0,0.00029115,2]
[426806824,1782850239000,-500.0,0.00029115,2]
[426806826,1782850239000,-500.0,0.00029115,2]
[426806825,1782850239000,-500.0,0.00029115,2]
[426806817,1782850239000,-500.0,0.00029115,2]
[426806821,1782850239000,-500.0,0.00029115,2]
[426806819,1782850239000,-500.0,0.00029115,2]
[426806861,1782850239000,-609.94,0.00029499,7]
[426806828,1782850239000,-500.0,0.00029115,2]
[426806827,1782850239000,-500.0,0.00029115,2]
[426806839,1782850239000,-499.999999,0.00029218,2]
[426806838,1782850239000,-1464.46,0.00029218,2]
[426806829,1782850239000,-500.0,0.00029115,2]
[426806862,1782850239000,-609.94,0.00029499,7]
[426806896,1782850239000,-609.94,0.00029799,7]
[426806865,1782850239000,-512.4,0.00029499,7]
[426806893,1782850239000,-3482.90538801,0.00029758,2]
[426806894,1782850239000,-385.43,0.00029786,15]
[426806897,1782850239000,-609.94,0.00029799,7]
[426806899,1782850239000,-609.94,0.00029799,7]
[426806895,1782850239000,-512.4,0.00029798,7]
[426806900,1782850239000,-609.94,0.00029799,7]
[426806902,1782850239000,-609.94,0.00029799,7]
[426806904,1782850239000,-512.4,0.00029799,7]
[426806901,1782850239000,-609.94,0.00029799,7]
[426806898,1782850239000,-609.94,0.00029799,7]
[426806916,1782850239000,-151.0,0.000298,7]
[426806906,1782850239000,-512.4,0.00029799,7]
[426806907,1782850239000,-512.4,0.00029799,7]
[426806909,1782850239000,-512.4,0.00029799,7]
[426806905,1782850239000,-512.4,0.00029799,7]
[426806908,1782850239000,-512.4,0.00029799,7]
[426806910,1782850239000,-512.5711677,0.00029799,7]
[426806912,1782850239000,-3000.0,0.000298,2]
[426806914,1782850239000,-151.0,0.000298,7]
[426806911,1782850239000,-157674.4565581,0.000298,2]
[426806915,1782850239000,-151.0,0.000298,7]
[426806913,1782850239000,-151.0,0.000298,18]
[426806917,1782850239000,-3000.0,0.0002981,2]
[426806918,1782850239000,-3000.0,0.0002982,2]
[426806863,1782850239000,-512.4,0.00029499,7]
[426806890,1782850239000,-507.86124827,0.00029642,2]
[426806888,1782850239000,-381.1,0.000296,3]
[426806903,1782850239000,-610.02571783,0.00029799,7]
[426806891,1782850239000,-385.43,0.00029686,15]
[426806884,1782850239000,-559.7250977,0.00029584,2]
[426806860,1782850239000,-609.94,0.00029499,7]
[426806864,1782850239000,-512.4,0.00029499,7]
[426806866,1782850239000,-512.4,0.00029499,7]
[426806867,1782850239000,-512.4,0.00029499,7]
[426806872,1782850239000,-512.4,0.00029499,7]
[426806869,1782850239000,-512.4,0.00029499,7]
[426806870,1782850239000,-512.4,0.00029499,7]
[426806871,1782850239000,-512.4,0.00029499,7]
[426806879,1782850239000,-300.0,0.000295,2]
[426806880,1782850239000,-559.7250977,0.00029516,2]
[426806876,1782850239000,-512.4,0.00029499,7]
[426806874,1782850239000,-512.4,0.00029499,7]
[426806859,1782850239000,-609.94,0.00029499,7]
[426806875,1782850239000,-512.4,0.00029499,7]
[426806873,1782850239000,-512.4,0.00029499,7]
[426806887,1782850239000,-224.01660082,0.000296,3]
[426806889,1782850239000,-385.43,0.00029636,15]
[426806886,1782850239000,-609.94,0.00029599,7]
[426806883,1782850239000,-385.43,0.00029536,15]
[426806885,1782850239000,-385.43,0.00029586,15]
[426806882,1782850239000,-582.82271884,0.0002952,2]
[426806892,1782850239000,-385.43,0.00029736,15]
[426806877,1782850239000,-238594.10721787,0.000295,2]
[426806878,1782850239000,-21921.97296095,0.000295,2]
[426806881,1782850239000,-5672.263885,0.00029518,2]
[426806956,1782850240000,-500.0,0.00029863,7]
[426806954,1782850240000,-608.12102482,0.00029863,7]
[426806960,1782850240000,-500.0,0.00029863,7]
[426806946,1782850240000,-500.0,0.00029863,7]
[426806959,1782850240000,-154.74110136,0.00029863,7]
[426806948,1782850240000,-500.0,0.00029863,7]
[426806950,1782850240000,-500.0,0.00029863,7]
[426806952,1782850240000,-500.0,0.00029863,7]
[426806949,1782850240000,-500.0,0.00029863,7]
[426806957,1782850240000,-500.0,0.00029863,7]
[426806955,1782850240000,-500.0,0.00029863,7]
[426806958,1782850240000,-500.0,0.00029863,7]
[426806968,1782850240000,-500.0,0.00029863,7]
[426806961,1782850240000,-500.0,0.00029863,7]
[426806965,1782850240000,-500.0,0.00029863,7]
[426806966,1782850240000,-500.0,0.00029863,7]
[426806964,1782850240000,-500.0,0.00029863,7]
[426806970,1782850240000,-500.0,0.00029863,7]
[426806971,1782850240000,-500.0,0.00029863,7]
[426806962,1782850240000,-500.0,0.00029863,7]
[426806972,1782850240000,-500.0,0.00029863,7]
[426806973,1782850240000,-500.0,0.00029863,7]
[426806974,1782850240000,-500.0,0.00029863,7]
[426806953,1782850240000,-500.0,0.00029863,7]
[426806963,1782850240000,-500.0,0.00029863,7]
[426806951,1782850240000,-500.0,0.00029863,7]
[426806929,1782850240000,-500.0,0.00029863,7]
[426806944,1782850240000,-500.0,0.00029863,7]
[426806924,1782850240000,-500.0,0.00029863,7]
[426806926,1782850240000,-500.0,0.00029863,7]
[426806927,1782850240000,-500.0,0.00029863,7]
[426806923,1782850240000,-3000.0,0.0002986,2]
[426806928,1782850240000,-500.0,0.00029863,7]
[426806925,1782850240000,-500.0,0.00029863,7]
[426806920,1782850240000,-385.43,0.00029836,15]
[426806922,1782850240000,-3000.0,0.0002985,2]
[426806919,1782850240000,-3000.0,0.0002983,2]
[426806921,1782850240000,-3000.0,0.0002984,2]
[426806931,1782850240000,-500.0,0.00029863,7]
[426806941,1782850240000,-500.0,0.00029863,7]
[426806930,1782850240000,-500.0,0.00029863,7]
[426806935,1782850240000,-500.0,0.00029863,7]
[426806933,1782850240000,-500.0,0.00029863,7]
[426806936,1782850240000,-500.0,0.00029863,7]
[426806932,1782850240000,-500.0,0.00029863,7]
[426806934,1782850240000,-500.0,0.00029863,7]
[426806940,1782850240000,-500.0,0.00029863,7]
[426806939,1782850240000,-500.0,0.00029863,7]
[426806938,1782850240000,-500.0,0.00029863,7]
[426806937,1782850240000,-500.0,0.00029863,7]
[426806942,1782850240000,-500.0,0.00029863,7]
[426806945,1782850240000,-500.0,0.00029863,7]
[426806947,1782850240000,-500.0,0.00029863,7]
[426806943,1782850240000,-500.0,0.00029863,7]
[426806976,1782850240000,-500.0,0.00029863,7]
[426806986,1782850240000,-500.0,0.00029863,7]
[426806987,1782850240000,-4010.51,0.00029863,7]
[426807037,1782850240000,-833.4,0.00029863,7]
[426807035,1782850240000,-833.4,0.00029863,7]
[426807031,1782850240000,-4010.72495864,0.00029863,7]
[426807033,1782850240000,-833.4,0.00029863,7]
[426807039,1782850240000,-833.4,0.00029863,7]
[426807045,1782850240000,-833.4,0.00029863,7]
[426807047,1782850240000,-833.4,0.00029863,7]
[426807050,1782850240000,-833.4,0.00029863,7]
[426807056,1782850240000,-833.4,0.00029863,7]
[426807052,1782850240000,-833.4,0.00029863,7]
[426807054,1782850240000,-833.4,0.00029863,7]
[426807059,1782850240000,-833.4,0.00029863,7]
[426807063,1782850240000,-833.4,0.00029863,7]
[426807066,1782850240000,-833.4,0.00029863,7]
[426807061,1782850240000,-833.4,0.00029863,7]
[426807080,1782850240000,-833.4,0.00029863,7]
[426807068,1782850240000,-833.4,0.00029863,7]
[426807082,1782850240000,-833.4,0.00029863,7]
[426807084,1782850240000,-833.61770412,0.00029863,7]
[426807072,1782850240000,-833.4,0.00029863,7]
[426807076,1782850240000,-833.4,0.00029863,7]
[426807070,1782850240000,-833.4,0.00029863,7]
[426807074,1782850240000,-833.4,0.00029863,7]
[426807078,1782850240000,-833.4,0.00029863,7]
[426806977,1782850240000,-500.0,0.00029863,7]
[426807029,1782850240000,-4010.51,0.00029863,7]
[426807025,1782850240000,-4010.51,0.00029863,7]
[426807058,1782850240000,-833.4,0.00029863,7]
[426807027,1782850240000,-4010.51,0.00029863,7]
[426806975,1782850240000,-500.0,0.00029863,7]
[426807015,1782850240000,-4010.51,0.00029863,7]
[426806978,1782850240000,-500.0,0.00029863,7]
[426806980,1782850240000,-500.0,0.00029863,7]
[426806979,1782850240000,-500.0,0.00029863,7]
[426806982,1782850240000,-500.0,0.00029863,7]
[426806984,1782850240000,-500.0,0.00029863,7]
[426806981,1782850240000,-4010.51,0.00029863,7]
[426806985,1782850240000,-4010.51,0.00029863,7]
[426806988,1782850240000,-500.0,0.00029863,7]
[426806990,1782850240000,-4010.51,0.00029863,7]
[426806992,1782850240000,-251.13117826,0.00029863,7]
[426806994,1782850240000,-4010.51,0.00029863,7]
[426806983,1782850240000,-4010.51,0.00029863,7]
[426807021,1782850240000,-4010.51,0.00029863,7]
[426807023,1782850240000,-4010.51,0.00029863,7]
[426807006,1782850240000,-4010.51,0.00029863,7]
[426807019,1782850240000,-4010.51,0.00029863,7]
[426807017,1782850240000,-4010.51,0.00029863,7]
[426807010,1782850240000,-4010.51,0.00029863,7]
[426807008,1782850240000,-4010.51,0.00029863,7]
[426807013,1782850240000,-4010.51,0.00029863,7]
[426807004,1782850240000,-4010.51,0.00029863,7]
[426807000,1782850240000,-4010.51,0.00029863,7]
[426806996,1782850240000,-4010.51,0.00029863,7]
[426806998,1782850240000,-4010.51,0.00029863,7]
[426807002,1782850240000,-4010.51,0.00029863,7]
[426807132,1782850241000,-1184.8,0.00029863,7]
[426807135,1782850241000,-1184.8,0.00029863,7]
[426807134,1782850241000,-1184.8,0.00029863,7]
[426807133,1782850241000,-1184.8,0.00029863,7]
[426807131,1782850241000,-1184.8,0.00029863,7]
[426807124,1782850241000,-1184.8,0.00029863,7]